Cogmind - Beta 16.1 @@@ ROGUE MODE // 2026.04.21 @ 21:16:24 Player: GiggleBox Result: Self-destructed Performance ------------- Evolutions (3) 1500 Regions Visited (4) 800 Robots Destroyed (73) 365 Value Destroyed (2668) 2668 Prototype IDs (16) 320 Alien Tech Used (0) 0 Bonus (0) 0 TOTAL SCORE: 5653 Bonus ------- None Cogmind --------- Core Integrity 617/700 Matter 44/300 Energy 290/290 System Corruption 2% Temperature Cool (0) Movement Treading (152) Location -7/Factory Parts ------- > --- POWER (1) -------- Improved Deuterium Engine > --- PROPULSION (4) --- Advanced Treads Advanced Treads Medium Treads Medium Treads > --- UTILITY (5) ------ Cooling System Large Storage Unit Hardened Medium Armor Plating Hardened Medium Armor Plating Hacking Suite > --- WEAPON (3) ------- Gatling Laser Gatling Laser Enhanced Autogun > --- INVENTORY (15) --- Light Treads Light Treads Advanced Treads Medium Treads Compact Matter Pod (105) Improved Sensor Array Improved Signal Interpreter Seismic Detector High-powered Tractor Beam Power Bank Plasma Cannon Autogun Minigun Mini Grenade Launcher Katana Peak State ------------ > --- POWER ------------ Improved Deuterium Engine > --- PROPULSION ------- Advanced Treads Advanced Treads Medium Treads Medium Treads > --- UTILITY ---------- Cooling System Large Storage Unit Hardened Medium Armor Plating Hardened Medium Armor Plating Hacking Suite > --- WEAPON ----------- Gatling Laser Enhanced Autogun Enhanced Autogun > --- INVENTORY -------- Light Treads Light Treads Advanced Treads Medium Treads Compact Matter Pod Improved Sensor Array Improved Signal Interpreter Seismic Detector High-powered Tractor Beam Power Bank Plasma Cannon Minigun Mini Grenade Launcher Katana [Rating: 46] Favorites ----------- Power Ion Engine Engine Ion Engine Power Core Light Nuclear Core Propulsion Light Treads Treads Light Treads Leg Aluminum Leg Wheel Compact Wheel Utility Large Storage Unit Device Seismic Detector Storage Large Storage Unit Hackware Hacking Suite Protection Hardened Medium Armor Plating Weapon Enhanced Autogun Energy Gun Medium Laser Ballistic Gun Enhanced Autogun Ballistic Cannon Battle Cannon Launcher Mini Grenade Launcher Special Weapon Multitool Slashing Weapon Katana Build | -11 -10 -10 -8 -7 ------- Run | Yrd Mat Sub Mat Fac Slots Evolved 6 | . . . 4 2 Power . | . . . . . Propulsion 2 | . . . 1 1 Utility 3 | . . . 2 1 Weapon 1 | . . . 1 . Parts Attached 46 | 4 6 9 18 9 Power 4 | . 1 . 2 1 Engine 3 | . 1 . 1 1 Core 1 | . . . 1 . Reactor . | . . . . . Propulsion 12 | 2 . 2 4 4 Treads 9 | 2 . . 3 4 Leg . | . . . . . Wheel 3 | . . 2 1 . Hover . | . . . . . Flight . | . . . . . Utility 12 | 1 2 . 8 1 Device 5 | 1 . . 4 . Storage 2 | . 1 . 1 . Processor . | . . . . . Hackware 1 | . . . 1 . Protection 4 | . 1 . 2 1 Artifact . | . . . . . Weapon 18 | 1 3 7 4 3 Energy Gun 5 | . 1 2 . 2 Energy Cannon . | . . . . . Ballistic Gun 7 | 1 1 2 3 . Ballistic Cannon 1 | . . 1 . . Launcher 2 | . 1 . . 1 Special Weapon 1 | . . 1 . . Impact Weapon . | . . . . . Slashing Weapon 2 | . . 1 1 . Piercing Weapon . | . . . . . Special Melee Weapon . | . . . . . Unidentified Prototypes 1 | . . . 1 . Parts Lost 7 | . . 4 1 2 Power 2 | . . . 1 1 Propulsion 2 | . . 2 . . Utility . | . . . . . Weapon 3 | . . 2 . 1 Highest Loss Streak 2 | . . 2 1 2 To Critical Strikes 1 | . . . 1 . Average Backups 13 | 6 7 12 14 14 Power . | 1 1 1 . . Propulsion 2 | 4 2 2 2 3 Utility 4 | . 1 2 6 6 Weapon 4 | 1 2 5 4 4 Tool/Special . | . . . . . Unused Backups 26 | . 8 2 6 10 Power 3 | . 2 1 . . Propulsion 7 | . 2 . 2 3 Utility 6 | . 2 . . 4 Weapon 10 | . 2 1 4 3 Tool/Special . | . . . . . Average Slot Usage (%) 99 | . 100 99 99 99 Engine 9 | . 14 14 4 1 Core 2 | . . . 3 5 Treads 24 | . 28 25 18 30 Wheel 3 | . . 2 9 . Device 11 | . 13 11 9 10 Storage 11 | . 14 14 9 7 Hackware 3 | . . . 7 7 Protection 5 | . . 2 9 11 Energy Gun 7 | . 14 12 . 2 Ballistic Gun 17 | . 14 12 24 20 Ballistic Cannon 1 | . . 2 . . Peak Build Rating 46 | 7 7 13 37 46 Average Rating 21 | 6 7 9 32 43 On Entrance 14 | 6 7 7 13 37 Avg Prop Armor Cover (%) 10 | . . 11 5 . Naked Turns . | . . . . . Heaviest Build 59 | 14 32 35 46 59 Greatest Support 100 | 40 40 40 66 100 Greatest Overweight (x) 1 | . . 1 1 . Average Overweight (x) . | . . . . . Largest Inventory Capacity 15 | 8 15 15 15 15 Average Capacity 14 | 8 9 15 15 15 Most Carried 15 | 6 9 15 15 15 Average Carried 13 | 6 7 12 14 14 Final Capacity 15 | 8 15 15 15 15 Final Carried 15 | 6 8 15 15 15 Class Distribution -------------------- 54% | Mutant 42% | Tank Dominant Class ---------------- Mutant | -10/Materials Mutant | -10/Subcaves Tank | -8/Materials Tank | -7/Factory Resources | -11 -10 -10 -8 -7 ----------- Run | Yrd Mat Sub Mat Fac Matter Collected 2478 | 244 148 356 1132 598 Remotely 196 | . . . 196 . Salvage Created 2955 | 87 303 322 1353 890 Parts 170 | 4 22 21 78 45 Haulers Intercepted 3 | . . . 3 . Recyclers Shooed 2 | . 1 . 1 . Parts Field Recycled . | . . . . . Retrieved Matter . | . . . . . Parts Self-Destructed 7 | . . 7 . . Prevented . | . . . . . Parts Restored . | . . . . . Kills | -11 -10 -10 -8 -7 ------- Run | Yrd Mat Sub Mat Fac Combat Hostiles Destroyed 62 | . 11 8 25 18 Guns 54 | . 10 7 25 12 Cannons 1 | . . 1 . . AOE 7 | . 1 . . 6 Classes Destroyed 13 | 2 3 2 3 3 Tunneler 2 | 1 . . . 1 Hauler 3 | . . . 3 . Recycler 1 | 1 . . . . Mechanic 1 | . . . . 1 Watcher 4 | . 1 . 2 1 Swarmer 10 | . 6 . 3 1 Grunt 30 | . 5 2 12 11 Brawler 1 | . . . . 1 Duelist 4 | . . . 3 1 Sentry 10 | . . 1 6 3 Hunter 1 | . . . 1 . Programmer 1 | . . . . 1 Subdweller 5 | . . 5 . . Best Kill Streak 8 | 2 3 2 8 4 Combat Bots Only 8 | . 3 2 8 4 Max Kills in Single Turn 2 | 1 1 1 2 1 Gunslinging 1 | . . . 1 . Exploded 1 | . 1 . . 1 Melee . | . . . . . Uniques/NPCs Destroyed . | . . . . . Combat | -11 -10 -10 -8 -7 -------- Run | Yrd Mat Sub Mat Fac Hostile Shots Fired 312 | . 41 47 73 151 Missed 99 | . 12 15 19 53 Hits 213 | . 29 32 54 98 Melee 4 | . . . 1 3 Projectile 209 | . 29 32 53 95 Critical Strikes 7 | . . . 4 3 Damage Taken 2935 | . 307 693 831 1104 Core 378 | . 50 122 123 83 Absorbed by Shields . | . . . . . Core Remaining (%) 69 | 100 . 31 77 . Volleys Fired 191 | 5 22 37 70 57 Largest 3 | 2 2 2 3 3 Hottest 185 | 90 70 93 118 185 Shots Fired 482 | 10 41 65 210 156 Gun 455 | 10 39 52 205 149 Cannon 18 | . . 13 5 . Launcher 9 | . 2 . . 7 Special . | . . . . . Kinetic 414 | 4 20 45 205 140 Thermal 58 | 5 19 20 5 9 Explosive 9 | . 2 . . 7 Electromagnetic 1 | 1 . . . . Robot Hit Streak 33 | 2 7 30 33 10 Robot Miss Streak 6 | 6 4 1 4 3 Penetration Max . | . . . . . Secondary Targets 8 | . 2 . 5 1 Max Gunslinging Chain 1 | . 1 . 1 1 Shots Hit Robots 306 | 3 23 43 142 95 Core Hits 135 | 3 17 13 54 48 Critical Kills 2 | . . . 1 1 Critical Parts Destroyed 2 | . . . 1 1 Critical Strikes 5 | . 1 . 2 2 Burn 1 | . 1 . . . Destroy 4 | . . . 2 2 Melee Attacks 8 | . . 2 1 5 Impact . | . . . . . Slashing 8 | . . 2 1 5 Piercing . | . . . . . Sneak Attacks . | . . . . . Combat Hostiles . | . . . . . Follow-up Attacks . | . . . . . Damage Inflicted 6131 | 65 410 812 2472 2372 Guns 5025 | 19 314 620 2393 1679 Cannons 265 | . . 192 73 . Explosions 817 | 46 91 . . 680 Melee . | . . . . . Ramming 24 | . 5 . 6 13 Kinetic 4618 | 7 132 547 2408 1524 Thermal 706 | 46 182 265 58 155 Explosive 771 | . 91 . . 680 Electromagnetic 12 | 12 . . . . Impact . | . . . . . Slashing . | . . . . . Piercing . | . . . . . Highest Corruption 2 | . 2 2 . 2 Average Corruption 1 | . 2 2 . 1 Corruption Purged . | . . . . . Corruption Blocked . | . . . . . Effects 36 | . 4 28 . 4 Message Errors 7 | . 1 5 . 1 Matter Fused 7 | . 2 4 . 1 Heat Flow Errors 7 | . 1 5 . 1 Energy Discharges 5 | . . 4 . 1 Parts Rejected 1 | . . 1 . . Parts Fused 1 | . . 1 . . Data Loss (minor) 6 | . . 6 . . Data Loss (major) 1 | . . 1 . . Misfires 1 | . . 1 . . Overload Shots . | . . . . . Overflow Damage . | . . . . . Projectiles . | . . . . . Explosions . | . . . . . Melee . | . . . . . Knockbacks 5 | . . 3 2 . Impact 1 | . . . 1 . Kinetic 4 | . . 3 1 . Secondary . | . . . . . Self-Inflicted Damage 26 | . . . . 26 Shots 1 | . . . . 1 Rammed 6 | . 2 . 2 2 Targets Rammed 6 | . 2 . 2 2 Kicked . | . . . . . Crushed . | . . . . . Highest Temperature 206 | 80 115 164 66 206 Average Temperature 43 | 31 51 74 12 55 Received Heat Transfer 987 | . 135 135 333 384 Siege Activations . | . . . . . Martial Activations . | . . . . . Shielding Activations . | . . . . . Robots Disrupted . | . . . . . Combat Hostiles . | . . . . . Robots Corrupted . | . . . . . Combat Hostiles . | . . . . . Parts Fried . | . . . . . Impact Corruptions . | . . . . . Robots Melted . | . . . . . Combat Hostiles . | . . . . . Parts Melted 1 | . . . . 1 Heat Transferred 1564 | 100 592 447 75 350 Parts Sabotaged . | . . . . . Parts Stolen . | . . . . . Parts Stripped . | . . . . . Power Chain Reactions 1 | 1 . . . . Alert | -11 -10 -10 -8 -7 ------- Run | Yrd Mat Sub Mat Fac Maximum Alert Level 1 | . . . 1 1 Low Security (%) 79 | 100 100 . 58 98 Level 1 20 | . . . 41 1 Level 2 . | . . . . . Level 3 . | . . . . . Level 4 . | . . . . . Level 5 . | . . . . . High Security . | . . . . . Max Security . | . . . . . Peak Influence 388 | 10 142 . 388 234 Initial 138 | . . . 19 138 Average 128 | 1 63 . 161 122 Influence Increases 1728 | 10 312 70 834 502 Destroy 0b10 Robot/C 1140 | . 220 60 500 360 Destroy 0b10 Robot/NC 55 | 10 5 . 25 15 Destroy Leader 284 | . 52 10 150 72 Successful Hack 68 | . 5 . 45 18 Select Force Hacks 30 | . . . 30 . Disable Machine 45 | . 15 . 30 . Destroy Structure 61 | . 15 . 9 37 Lose Combat Pursuer 45 | . . . 45 . Influence Decreases 1488 | 10 194 150 566 568 Entered New Map 245 | . . 58 19 168 Time Decay 1073 | 10 194 92 397 380 Lost Part 20 | . . . . 20 Purge Threat 150 | . . . 150 . Squads Dispatched 15 | . 3 . 4 8 Investigation 5 | . 1 . 1 3 Extermination 2 | . . . . 2 Reinforcement 8 | . 2 . 3 3 Assault . | . . . . . Garrison . | . . . . . Intercept . | . . . . . Searches Triggered . | . . . . . Construction Impeded 1 | . . . 1 . Haulers Reinforced 1 | . . . . 1 Active Scanning Responses . | . . . . . Cargo Convoy Interrupts . | . . . . . Stealth | -11 -10 -10 -8 -7 --------- Run | Yrd Mat Sub Mat Fac Distress Signals 2 | . 2 . . . Communications Jammed . | . . . . . Distress Signals . | . . . . . Times Spotted 79 | . 13 8 35 23 Peak Tracking Total 7 | . 5 2 7 4 Tactical Retreats 1 | . . . 1 . Traps | -11 -10 -10 -8 -7 ------- Run | Yrd Mat Sub Mat Fac Traps Triggered 8 | . 2 2 2 2 Indirectly . | . . . . . Trap Hack Attempts . | . . . . . Triggered . | . . . . . Disarmed . | . . . . . Reprogrammed . | . . . . . Reused 1 | . . 1 . . Traps Extracted . | . . . . . Installed 1 | . . 1 . . Triggered 1 | . . 1 . . Most Traps Carried 1 | . . 1 . . Machines | -11 -10 -10 -8 -7 ---------- Run | Yrd Mat Sub Mat Fac Machines Disabled 5 | . 1 2 2 . Max in Single Turn 1 | . 1 1 1 . Garrison Access 1 | . . . . 1 Machines Repaired . | . . . . . Machines Dismantled . | . . . . . Machines Sabotaged . | . . . . . Overloaded Fab Kills . | . . . . . Hacking | -11 -10 -10 -8 -7 --------- Run | Yrd Mat Sub Mat Fac Machines Accessed 24 | . 3 2 9 10 Terminals 18 | . 3 . 7 8 Fabricators 1 | . . . . 1 Repair Stations . | . . . . . Recycling Units 1 | . . . 1 . Scanalyzers 1 | . . . 1 . Garrison Access 1 | . . . . 1 Total Hacks 73 | . 13 5 33 22 Successful 37 | . 4 5 22 6 Failed 35 | . 9 . 10 16 Catastrophic 5 | . . . 1 4 Database Lockouts 1 | . . . 1 . Manual 42 | . 9 . 20 13 Terminals 57 | . 13 . 25 19 Fabricators 1 | . . . . 1 Repair Stations . | . . . . . Recycling Units 1 | . . . 1 . Scanalyzers 7 | . . . 7 . Garrison Access 2 | . . . . 2 Terminal Hacks 18 | . 3 5 8 2 Record 4 | . . 4 . . Robot Analysis 3 | . 2 . 1 . Prototype ID Bank 1 | . . . 1 . Branch Access Points 2 | . . . 1 1 Alert Level 2 | . . . 2 . Unreport Threat 1 | . . . 1 . Locate Traps 1 | . 1 . . . Hauler Manifests 2 | . . . 1 1 Registered Prototypes 1 | . . . 1 . Proto ID Catalog 1 | . . 1 . . Fabricator Hacks 1 | . . . . 1 Network Status 1 | . . . . 1 Repair Station Hacks . | . . . . . Recycling Unit Hacks . | . . . . . Scanalyzer 6 | . . . 6 . Insert Component 3 | . . . 3 . Analyze 3 | . . . 3 . Garrison Access Hacks 1 | . . . . 1 Seal Access 1 | . . . . 1 Unauthorized Hacks 11 | . 1 . 8 2 Terminals 10 | . 1 . 7 2 Assimilate 1 | . . . . 1 Botnet 4 | . 1 . 2 1 Disrupt 1 | . . . 1 . Operators 1 | . . . 1 . Skim 3 | . . . 3 . Fabricators . | . . . . . Repair Stations . | . . . . . Recycling Units 1 | . . . 1 . Tunnel 1 | . . . 1 . Scanalyzers . | . . . . . Garrison Access . | . . . . . Data Cores Recovered . | . . . . . Used . | . . . . . Hacking Detections 20 | . 3 . 8 9 Full Trace Events 3 | . . . . 3 Feedback Events . | . . . . . Feedback Blocked . | . . . . . Robot Schematics Acquired . | . . . . . Robots Built . | . . . . . Authchips . | . . . . . Time . | . . . . . Total Robot Build Rating . | . . . . . Part Schematics Acquired 3 | . . . 3 . Parts Built . | . . . . . Authchips . | . . . . . Time . | . . . . . Total Part Build Rating . | . . . . . Part Studies Acquired . | . . . . . Parts Repaired . | . . . . . Time . | . . . . . Parts Recycled . | . . . . . Recycled Matter . | . . . . . Retrieved Matter . | . . . . . Retrieved Components . | . . . . . Parts Scanalyzed 3 | . . . 3 . Part Schematics Acquired 3 | . . . 3 . Parts Damaged . | . . . . . Bothacking | -11 -10 -10 -8 -7 ------------ Run | Yrd Mat Sub Mat Fac Used RIF Installer . | . . . . . Robots Hacked . | . . . . . Non-combat . | . . . . . Combat . | . . . . . Robot Hacks Applied . | . . . . . Relay Couplers Released . | . . . . . Fabnet Peak Effective % . | . . . . . Robots Rewired . | . . . . . Allies Hacked . | . . . . . Hacks Repelled . | . . . . . Allies | -11 -10 -10 -8 -7 -------- Run | Yrd Mat Sub Mat Fac Total Allies . | . . . . . Largest Group . | . . . . . Highest-Rated Group . | . . . . . Highest-Rated Ally . | . . . . . Total Orders . | . . . . . Ally Attacks . | . . . . . Total Damage . | . . . . . Kills . | . . . . . Allies Corrupted . | . . . . . Allies Melted . | . . . . . Intel | -11 -10 -10 -8 -7 ------- Run | Yrd Mat Sub Mat Fac Active Infowar (turns) 2738 | 13 417 1854 87 367 Seismic 2738 | 13 417 1854 87 367 Robot Analysis Total 3 | . 2 . 1 . Derelict Logs Recovered 1 | . . 1 . . Drone Launches . | . . . . . Drone Recoveries . | . . . . . Exploration | -11 -10 -10 -8 -7 ------------- Run | Yrd Mat Sub Mat Fac Turns Passed 4811 | 44 442 2223 1206 896 Spaces Moved 2739 | 15 224 1318 717 465 Core . | . . . . . Treads 2293 | 15 224 1142 447 465 Legs . | . . . . . Wheels 446 | . . 176 270 . Hover . | . . . . . Flight . | . . . . . Fastest Speed 103 | 160 160 105 103 145 Average Speed 147 | 160 160 153 129 149 Slowest Speed 240 | 160 160 240 225 152 Overloaded Moves . | . . . . . Propulsion Burnouts . | . . . . . Robots Hopped . | . . . . . Potential Cave-ins . | . . . . . Cave-ins Triggered . | . . . . . Exploration Rate (%) 38 | 2 38 75 58 18 Regions Visited 4 Branch Regions 1 Pre-discovered Areas 2 | . . 1 1 . Known Exits Taken . | . . . . . Unknown Exits Taken 4 | 1 1 1 1 . Scrap Searched 3 | . . 3 . . Spaces Dug 23 | . 8 1 . 14 Terrain Destroyed 57 | 2 13 1 . 41 Melee 3 | . . 1 . 2 Projectile . | . . . . . AOE 54 | 2 13 . . 39 Terrain Rammed . | . . . . . Walls Destroyed . | . . . . . Machines Disabled . | . . . . . Actions | -11 -10 -10 -8 -7 --------- Run | Yrd Mat Sub Mat Fac Total 3242 | 24 268 1439 925 586 Wait 139 | 1 3 39 65 31 Move 2735 | 14 223 1317 716 465 Hop . | . . . . . Pick Up 43 | . 5 16 20 2 Fast Attach 13 | 1 . 2 7 3 Attach 12 | . . 4 5 3 Detach 1 | . . 1 . . Swap 52 | 3 7 15 13 14 Drop 41 | . 6 5 26 4 Fire 191 | 5 22 37 70 57 Melee 8 | . . 2 1 5 Ram . | . . . . . Kick . | . . . . . Crush 6 | . 2 . 2 2 Escape Stasis . | . . . . . Rewire . | . . . . . Trap 1 | . . 1 . . Miscellaneous . | . . . . . Route ------- -11/Scrapyard -10/Materials (discovered 2 exits: [*Mat] / *Sub) -10/Subcaves -8/Materials -7/Factory (discovered 4 exits: *Fac x2 / Low x2) History --------- Turn | Location | Event 5 | -11/Scrapyard | Discovered new exit (range 2) 45 | -11/Scrapyard | Entered Materials 282 | -10/Materials | Discovered new exit (range 10) 310 | -10/Materials | Build established: Mutant 470 | -10/Materials | Discovered new exit (range 6) 487 | -10/Materials | Entered Subcaves 491 | -10/Subcaves | Learned location of Storage (-9) 560 | -10/Subcaves | Shifting Twisted Machinery released Sub. Power Source 568 | -10/Subcaves | Shifting Twisted Machinery released Sub. Machine Gun 628 | -10/Subcaves | Shifting Twisted Machinery released Multitool 883 | -10/Subcaves | Visited Clippyterm 888 | -10/Subcaves | Learned 40 Factory zone layouts 1217 | -10/Subcaves | A Subdweller sparked back to life 1217 | -10/Subcaves | A Subdweller sparked back to life 1451 | -10/Subcaves | Shifting Twisted Machinery released Piercing Trap 1459 | -10/Subcaves | A swath of the cavern ceiling suddenly collapsed 1672 | -10/Subcaves | Visited 4L-MR0's lab 1697 | -10/Subcaves | Found Power Bank 2440 | -10/Subcaves | Core integrity fell below 50% 2702 | -10/Subcaves | Discovered new exit (range 6) 2710 | -10/Subcaves | Entered Materials 2710 | -8/Materials | Evolved 4 slots: Propulsion x1, Utility x2, Weapon x1 2935 | -8/Materials | Central database locked down 2998 | -8/Materials | Discovered new exit (range 4) 3047 | -8/Materials | Build established: Tank 3234 | -8/Materials | Destroyed 7 combat bots 3643 | -8/Materials | Destroyed 8 combat bots 3916 | -8/Materials | Entered Factory 3916 | -7/Factory | Evolved 2 slots: Propulsion x1, Utility x1 3917 | -7/Factory | Identified exit to Factory 3917 | -7/Factory | Identified exit to Lower Caves 4483 | -7/Factory | Discovered exit to Factory (range 10) 4812 | -7/Factory | Self-destructed Last Messages --------------- 04736_ Acquired Gatling Laser. 04741_ Acquired 54 matter. 04755_ Machine Analyzer melted. 04755_ M-28 Smith destroyed. 04758_ Acquired 34 matter. 04786_ Critical hit (Burn: +37). 04791_ G-47 Trooper destroyed. 04791_ A-02 Transporter calls for reinforcements. 04791_ ALERT: Hostile activity reported, dispatching reinforcements to area. 04793_ G-47 Trooper destroyed. 04800_ K-01 Serf collects debris. 04802_ U-05 Engineer lays Concrete. 04803_ U-05 Engineer builds a Wall. 04812_ Connecting with Terminal... >>Access(Branch) Found 2 branch access points: (183,142) Lower Caves (185,68) Lower Caves Map updated. Map ----- +----------------------------------------------------+ | ??????????????????????????????????########## | | ??????????????????????????????????# | | ??????????????????????????????????# " | | ??????????????????????????????????# " | | ??????????????????????????????????# " | | ??????????????????????????????????# | | ??????????????????????????????????# | | ??????????????????????????????????# | | ??????????????????????????????????# | | ?????????????????????????#######??# | | ????????????????????????? ############+ | | ????????????????????????? # | | ????????????????????????? # | | ????????????????????????? # | | ?????????????????????????"""" # | | #???######???????????????"""" + | | # #???????????????"""" # | | # """ #???????????????"""" # | | # """ #???????????????"""" # | | # """ ! #???????????????"""" # | | # #???????????????"""" # | | # #????????# # | | # ** ! #???????############### | | # * #???????# # | | # [#???????# T ] # | | #####+####???????# @ # | | ??# #????????# # | | ??# #?######## """"""""" ########## | | ??# " #?# # #????????# | | ??# #?# ######+########????????# | | ??# #?# #???# #??????????????# | | ??### ###?# ##### #??????????????# | | ????#[#???# + ###########???# | | ????#=#???# #### ## """ #???# | | ????# #???###+####??# # """ #???# | | ????#!#???# #### """ #???# | | ????#[##### " #???#### | | ????# "T = #??????? | | ########### | #??????? | | # """""" ## ### % [ ! ######## | | # """""" #### ###?# = # | | # """""" #??# #???# ########## | | # """""" #??# #???## ##????????# | | # #??# #????#### ###?????????# | | # #??# #???????#/############# | | ####+##+##??# #???????# ## # | | ???# #???# #???????# ## # | | ???# ####???# #???????# # # | | ???# #??????# #???????# # # | | ???# #??????# #???????# # # | +----------------------------------------------------+ Best States ------------- Heat Dissipation 56 Energy Generation 16 Energy Capacity 290 Matter Stores 300 Matter Capacity 300 Sight Range 16 Terrain Scan Density 10 Armor Coverage 450 Evasion (%) 40 Recoil Reduction 4 Offensive Hacking 10 Item Schematics ----------------- Lgt. Armor Plating | -8/Materials | Scanalyzed Multitool | -8/Materials | Scanalyzed Sub. Laser | -8/Materials | Scanalyzed Robot Schematics ------------------ None Fabricated ------------ Nothing Repaired ---------- Nothing Studied --------- None Alien Tech Used ----------------- None Achievements -------------- None Challenges ------------ None Game ------ Seed FluxFrostSightfinder Manual? 0 Play Time 00:35:28 Cumulative 348.9 hours Start 2026.04.21 @ 20:46:43 End 2026.04.21 @ 21:16:24 Sessions 1 Manual Loads 0 Difficulty Rogue Special Mode None Game No. 227 Rogue 227 Adventurer 0 Explorer 0 Win Type - Total 16 Types 8/1/3/2/0/0/0/0/1/1 Lore% 82 Gallery% 71 Achievement% 64 Wizard Run 0 Options --------- Layout 0 ASCII 0 Keyboard 1 Movement Numpad Keybinds 0 Fullscreen 1 Font 24/Terminus Map View 76x50 Zoom Use 0% Tactical HUD 1 Map Filters NONE Filters NONE Steam 1 RUN: febd0da9-6af7-45b6-afcb-eccd042660ec